Cogmind - Beta 13 @@@ ROGUE MODE // 2024.04.20 @ 22:39:04 Player: Olafz Result: Destroyed by 60-547(R) with Subdweller Machine Gun Performance ------------- Evolutions (0) 0 Regions Visited (3) 600 Robots Destroyed (19) 95 Value Destroyed (436) 436 Prototype IDs (0) 0 Alien Tech Used (0) 0 Bonus (-78) -78 TOTAL SCORE: 1053 Bonus ------- Follower Combat Kills 50 Friendly Fire -128 Cogmind --------- Core Integrity 0/250 Matter 266/300 Energy 96/125 System Corruption 0% Temperature Cool (0) Movement Treading (160) Location -10/Subcaves Parts ------- > --- POWER (1) -------- Light Ion Engine > --- PROPULSION (2) --- Light Treads Light Treads > --- UTILITY (2) ------ Small Storage Unit > --- WEAPON (2) ------- Assault Rifle > --- INVENTORY (8) ---- Ion Engine Subdweller Power Source Improved Heat Sink Makeshift System Shield Peak State ------------ > --- POWER ------------ Subdweller Power Source > --- PROPULSION ------- Aluminum Leg Aluminum Leg > --- UTILITY ---------- Small Storage Unit Makeshift Thermal Plating > --- WEAPON ----------- Subdweller Laser Subdweller Beam Cannon > --- INVENTORY -------- Ion Engine Light Ion Engine Light Treads Light Treads Improved Heat Sink Makeshift System Shield Medium Laser Assault Rifle [Rating: 14] Favorites ----------- Power Ion Engine Engine Ion Engine Propulsion Aluminum Leg Treads Light Treads Leg Aluminum Leg Utility Small Storage Unit Storage Small Storage Unit Protection Makeshift Thermal Plating Weapon Medium Laser Energy Gun Medium Laser Energy Cannon Subdweller Beam Cannon Ballistic Gun Subdweller Machine Gun Build | -11 -10 -10 -10 ------- Run | Yrd Mat Min Sub Slots Evolved . | . . . . Power . | . . . . Propulsion . | . . . . Utility . | . . . . Weapon . | . . . . Parts Attached 11 | . . . 11 Power 3 | . . . 3 Engine 3 | . . . 3 Core . | . . . . Reactor . | . . . . Propulsion 2 | . . . 2 Treads 2 | . . . 2 Leg . | . . . . Wheel . | . . . . Hover . | . . . . Flight . | . . . . Utility 1 | . . . 1 Device . | . . . . Storage . | . . . . Processor . | . . . . Hackware . | . . . . Protection 1 | . . . 1 Artifact . | . . . . Weapon 5 | . . . 5 Energy Gun 2 | . . . 2 Energy Cannon 1 | . . . 1 Ballistic Gun 2 | . . . 2 Ballistic Cannon . | . . . . Launcher . | . . . . Special Weapon . | . . . . Impact Weapon . | . . . . Slashing Weapon . | . . . . Piercing Weapon . | . . . . Special Melee Weapon . | . . . . Unidentified Prototypes . | . . . . Parts Lost 7 | . . . 7 Power 1 | . . . 1 Propulsion 2 | . . . 2 Utility 1 | . . . 1 Weapon 3 | . . . 3 Highest Loss Streak 6 | . . . 6 To Critical Strikes 1 | . . . 1 Average Slot Usage (%) 88 | . 85 85 91 Engine 13 | . 14 14 13 Leg 27 | . 28 28 27 Storage 14 | . 14 14 14 Protection 3 | . . . 6 Energy Gun 21 | . 28 28 14 Energy Cannon 5 | . . . 11 Ballistic Gun 1 | . . . 1 Naked Turns . | . . . . Heaviest Build 26 | 14 14 14 26 Greatest Support 20 | 20 20 20 20 Greatest Overweight (x) 1 | . . . 1 Average Overweight (x) . | . . . . Largest Inventory Capacity 8 | . 8 8 8 Average Capacity 8 | . 8 8 8 Most Carried 8 | . 7 8 8 Average Carried 7 | . 6 7 7 Final Capacity 8 | 8 8 8 8 Final Carried 8 | 6 7 8 4 Class Distribution -------------------- 100% | Mutant Dominant Class ---------------- Mutant | -10/Materials Mutant | -10/Mines Mutant | -10/Subcaves Resources | -11 -10 -10 -10 ----------- Run | Yrd Mat Min Sub Matter Collected 268 | 200 . . 68 Remotely . | . . . . Salvage Created 582 | . 46 139 397 Parts 33 | . 6 10 17 Haulers Intercepted . | . . . . Recyclers Shooed . | . . . . Parts Field Recycled . | . . . . Retrieved Matter . | . . . . Parts Self-Destructed 12 | . . . 12 Prevented . | . . . . Kills | -11 -10 -10 -10 ------- Run | Yrd Mat Min Sub Combat Hostiles Destroyed 16 | . 3 5 8 Guns 13 | . 3 5 5 Cannons 3 | . . . 3 Classes Destroyed 5 | . 1 1 3 Turret 2 | . . . 2 Swarmer 9 | . 3 3 3 Grunt 3 | . . 2 1 Sentry 1 | . . . 1 Subdweller 4 | . . . 4 Best Kill Streak 3 | . 2 3 3 Combat Bots Only 3 | . 2 3 3 Max Kills in Single Turn 2 | . 1 1 2 Gunslinging . | . . . . Exploded . | . . . . Melee . | . . . . Uniques/NPCs Destroyed . | . . . . Combat | -11 -10 -10 -10 -------- Run | Yrd Mat Min Sub Hostile Shots Fired 123 | . 10 16 97 Missed 37 | . 3 5 29 Damage Taken 1230 | . 55 131 1044 Core 267 | . 9 35 223 Absorbed by Shields . | . . . . Ignored by Resistances 33 | . . . 33 Core Remaining (%) 100 | 100 . . . Volleys Fired 55 | . 3 10 42 Largest 2 | . 2 2 2 Hottest 140 | . 100 100 140 Shots Fired 109 | . 6 20 83 Gun 82 | . 6 20 56 Cannon 27 | . . . 27 Launcher . | . . . . Special . | . . . . Kinetic 11 | . . . 11 Thermal 98 | . 6 20 72 Explosive . | . . . . Electromagnetic . | . . . . Robot Hit Streak 16 | . 3 12 16 Robot Miss Streak 3 | . 1 2 3 Penetration Max . | . . . . Secondary Targets 3 | . . 2 1 Max Gunslinging Chain 1 | . . 1 1 Shots Hit Robots 73 | . 3 16 54 Core Hits 25 | . 3 8 14 Critical Kills 1 | . . . 1 Critical Parts Destroyed . | . . . . Critical Strikes 2 | . . 1 1 Burn 1 | . . 1 . Meltdown 1 | . . . 1 Melee Attacks . | . . . . Impact . | . . . . Slashing . | . . . . Piercing . | . . . . Sneak Attacks . | . . . . Combat Hostiles . | . . . . Follow-up Attacks . | . . . . Damage Inflicted 1324 | . 38 214 1072 Guns 870 | . 38 214 618 Cannons 454 | . . . 454 Explosions . | . . . . Melee . | . . . . Ramming . | . . . . Kinetic 128 | . . . 128 Thermal 1196 | . 38 214 944 Explosive . | . . . . Electromagnetic . | . . . . Impact . | . . . . Slashing . | . . . . Piercing . | . . . . Highest Corruption . | . . . . Average Corruption . | . . . . Corruption Purged . | . . . . Corruption Blocked . | . . . . Overload Shots . | . . . . Overflow Damage 23 | . . . 23 Projectiles 23 | . . . 23 Explosions . | . . . . Melee . | . . . . Knockbacks . | . . . . Impact . | . . . . Kinetic . | . . . . Secondary . | . . . . Self-Inflicted Damage . | . . . . Shots . | . . . . Rammed . | . . . . Targets Rammed 1 | . . . 1 Kicked 1 | . . . 1 Crushed . | . . . . Highest Temperature 190 | . 78 183 190 Average Temperature 57 | . 33 76 51 Received Heat Transfer 219 | . . 69 150 Siege Activations . | . . . . Robots Corrupted . | . . . . Combat Hostiles . | . . . . Parts Fried . | . . . . Impact Corruptions . | . . . . Robots Melted 1 | . . . 1 Combat Hostiles . | . . . . Parts Melted 8 | . . 1 7 Heat Transferred 2226 | . 111 703 1412 Parts Sabotaged . | . . . . Parts Stolen . | . . . . Parts Stripped . | . . . . Power Chain Reactions . | . . . . Alert | -11 -10 -10 -10 ------- Run | Yrd Mat Min Sub Peak Influence 232 | . 98 232 . Initial 37 | . . 37 . Average 104 | . 52 112 . Maximum Alert Level 1 | . . 1 . Low Security (%) 77 | . 100 73 . Level 1 22 | . . 26 . Level 2 . | . . . . Level 3 . | . . . . Level 4 . | . . . . Level 5 . | . . . . High Security . | . . . . Max Security . | . . . . Squads Dispatched 2 | . 1 1 . Investigation 2 | . 1 1 . Extermination . | . . . . Reinforcement . | . . . . Assault . | . . . . Garrison . | . . . . Intercept . | . . . . Searches Triggered . | . . . . Construction Impeded . | . . . . Haulers Reinforced . | . . . . Active Scanning Responses . | . . . . Cargo Convoy Interrupts . | . . . . Stealth | -11 -10 -10 -10 --------- Run | Yrd Mat Min Sub Distress Signals . | . . . . Communications Jammed . | . . . . Distress Signals . | . . . . Times Spotted 53 | . 4 7 42 Peak Tracking Total 5 | . 3 3 5 Tactical Retreats 4 | . 1 . 3 Traps | -11 -10 -10 -10 ------- Run | Yrd Mat Min Sub Traps Triggered . | . . . . Indirectly . | . . . . Trap Hack Attempts . | . . . . Triggered . | . . . . Disarmed . | . . . . Reprogrammed . | . . . . Reused . | . . . . Traps Extracted . | . . . . Installed . | . . . . Triggered . | . . . . Machines | -11 -10 -10 -10 ---------- Run | Yrd Mat Min Sub Machines Disabled 1 | . . . 1 Max in Single Turn 1 | . . . 1 Machines Repaired . | . . . . Machines Dismantled . | . . . . Machines Sabotaged . | . . . . Overloaded Fab Kills . | . . . . Hacking | -11 -10 -10 -10 --------- Run | Yrd Mat Min Sub Machines Accessed 5 | . 3 2 . Terminals 5 | . 3 2 . Fabricators . | . . . . Repair Stations . | . . . . Recycling Units . | . . . . Scanalyzers . | . . . . Garrison Access . | . . . . Total Hacks 13 | . 8 5 . Successful 4 | . 4 . . Failed 9 | . 4 5 . Catastrophic 3 | . . 3 . Database Lockouts . | . . . . Manual 13 | . 8 5 . Terminals 13 | . 8 5 . Fabricators . | . . . . Repair Stations . | . . . . Recycling Units . | . . . . Scanalyzers . | . . . . Garrison Access . | . . . . Terminal Hacks 1 | . 1 . . Branch Access Points 1 | . 1 . . Fabricator Hacks . | . . . . Repair Station Hacks . | . . . . Recycling Unit Hacks . | . . . . Scanalyzer . | . . . . Garrison Access Hacks . | . . . . Unauthorized Hacks 3 | . 3 . . Terminals 3 | . 3 . . Botnet 2 | . 2 . . Disrupt 1 | . 1 . . Fabricators . | . . . . Repair Stations . | . . . . Recycling Units . | . . . . Scanalyzers . | . . . . Garrison Access . | . . . . Data Cores Recovered . | . . . . Used . | . . . . Hacking Detections 4 | . 2 2 . Full Trace Events 3 | . 1 2 . Feedback Events . | . . . . Feedback Blocked . | . . . . Robot Schematics Acquired . | . . . . Robots Built . | . . . . Authchips . | . . . . Time . | . . . . Total Robot Build Rating . | . . . . Part Schematics Acquired . | . . . . Parts Built . | . . . . Authchips . | . . . . Time . | . . . . Total Part Build Rating . | . . . . Parts Repaired . | . . . . Time . | . . . . Parts Recycled . | . . . . Recycled Matter . | . . . . Retrieved Matter . | . . . . Retrieved Components . | . . . . Parts Scanalyzed . | . . . . Part Schematics Acquired . | . . . . Parts Damaged . | . . . . Bothacking | -11 -10 -10 -10 ------------ Run | Yrd Mat Min Sub Used RIF Installer . | . . . . Robots Hacked . | . . . . Non-combat . | . . . . Combat . | . . . . Robot Hacks Applied . | . . . . Relay Couplers Released . | . . . . Fabnet Peak Effective % . | . . . . Robots Rewired . | . . . . Allies Hacked . | . . . . Hacks Repelled . | . . . . Allies | -11 -10 -10 -10 -------- Run | Yrd Mat Min Sub Total Allies 3 | . . 3 . Largest Group 3 | . . 3 3 Highest-Rated Group 40 | . . 40 39 Highest-Rated Ally 16 | . . 16 16 Total Orders . | . . . . Ally Attacks 13 | . . 11 2 Total Damage 190 | . . 158 32 Kills 2 | . . 2 . Allies Corrupted . | . . . . Allies Melted 1 | . . . 1 Intel | -11 -10 -10 -10 ------- Run | Yrd Mat Min Sub Robot Analysis Total . | . . . . Derelict Logs Recovered 1 | . . 1 . Drone Launches . | . . . . Drone Recoveries . | . . . . Exploration | -11 -10 -10 -10 ------------- Run | Yrd Mat Min Sub Turns Passed 1513 | . 103 625 785 Spaces Moved 1011 | 1 76 479 455 Core . | . . . . Treads . | . . . . Legs 1011 | 1 76 479 455 Wheels . | . . . . Hover . | . . . . Flight . | . . . . Fastest Speed 120 | 120 120 120 120 Average Speed 129 | 120 120 120 140 Slowest Speed 190 | 120 120 120 190 Overloaded Moves . | . . . . Propulsion Burnouts . | . . . . Robots Hopped . | . . . . Cave-ins Triggered . | . . . . Exploration Rate (%) 43 | 2 28 99 44 Regions Visited 3 Branch Regions 2 Pre-discovered Areas 1 | . . 1 . Known Exits Taken 1 | . 1 . . Unknown Exits Taken 2 | 1 . 1 . Scrap Searched 2 | . . 1 1 Spaces Dug . | . . . . Terrain Destroyed . | . . . . Melee . | . . . . Projectile . | . . . . AOE . | . . . . Terrain Rammed . | . . . . Walls Destroyed . | . . . . Machines Disabled . | . . . . Actions | -11 -10 -10 -10 --------- Run | Yrd Mat Min Sub Total 1109 | . 82 509 518 Wait 25 | . 3 20 2 Move 1008 | . 75 478 455 Hop . | . . . . Pick Up 3 | . 1 1 1 Fast Attach 4 | . . . 4 Attach 5 | . . . 5 Detach 1 | . . . 1 Swap 2 | . . . 2 Drop 5 | . . . 5 Fire 55 | . 3 10 42 Melee . | . . . . Ram . | . . . . Kick 1 | . . . 1 Crush . | . . . . Escape Stasis . | . . . . Rewire . | . . . . Trap . | . . . . Miscellaneous . | . . . . Route ------- -11/Scrapyard -10/Materials -10/Mines (discovered 3 exits: [*Mat x2] / [*Sub]) -10/Subcaves (discovered 1 exit: [*Rec]) History --------- Turn | Location | Event 1 | -11/Scrapyard | Discovered new exit (range 0) 1 | -11/Scrapyard | Entered Materials 49 | -10/Materials | Identified exit to Mines 104 | -10/Materials | Entered Mines 110 | -10/Mines | Assisted by bots powering up and referring to "LRC-V3" 202 | -10/Mines | Discovered new exit (range 11) 305 | -10/Mines | Build established: Mutant 312 | -10/Mines | Learned location of Storage (-7) 427 | -10/Mines | Discovered new exit (range 15) 517 | -10/Mines | Received a Rocket Launcher from a helpful Derelict 634 | -10/Mines | Found a hidden stash of uninstalled traps 718 | -10/Mines | Discovered new exit (range 6) 729 | -10/Mines | Entered Subcaves 729 | -10/Subcaves | Accompanied by 3 allies 1277 | -10/Subcaves | Shifting Twisted Machinery released Sub. Machine Gun 1283 | -10/Subcaves | Shifting Twisted Machinery released Sub. Laser 1283 | -10/Subcaves | Shifting Twisted Machinery released Sub. Power Source 1302 | -10/Subcaves | Shifting Twisted Machinery released Spk. Treads 1368 | -10/Subcaves | Discovered new exit (range 13) 1493 | -10/Subcaves | Core integrity fell below 50% 1503 | -10/Subcaves | Core integrity fell below 20% 1514 | -10/Subcaves | Destroyed by 60-547(R) with Subdweller Machine Gun Last Messages --------------- Destroyed Autobeam. Autobeam Turret destroyed. EXIT=FOUND Autobeam Turret destroyed. Sub. Beam Cannon destroyed. JO-4AT(R) destroyed. Acquired 10 matter. Dropped Med. Laser. Acquired Sub. Machine Gun. Acquired 10 matter. Aluminum Leg destroyed. Sub. Power Source destroyed. Aluminum Leg destroyed. Sub. Machine Gun destroyed. Mak. Thermal Plating destroyed. Sub. Optics melted. D0-E5M(R) destroyed. Switching to secondary target: TL-XNE(R). Critical hit (Destroy). Sub. Laser destroyed. Map ----- +----------------------------------------------------+ | #??????#" """""""" # ## ##???????????????????? | | ## #?#""""""[ # #???????????????????? | | #???#" ["""""##???????????????????? | | ##???## *"""## #???????????????????? | | ## ##????## "#""#?#???????????????????? | | ??###?###?# """"?????????????????????? | | ??????# ## # "" ??????????????????? | | ###??## # ###" #???????????????????? | | #### ## ###????#???????????????????? | | ### #??????????????????????????? | | " #?#"" #?????????????????????????? | | # ## "= #?# "" #????????????????????????? | | #?#??## ""[#?## "" ##????????????????????????? | | #??????## !" #??## """#?????????????????????????? | | ##??????###%/#???## "###???????????????????????? | | #######?# "%#########""####????????????????????? | | #### % ## ##?# """ ####?????????????????? | | ## %"" ### "" #?????????????????? | | ### ## #??????????????????? | | #?#] """ # " ##??????????????????? | | ?## ### " #####" ##???????????????????? | | ?# "#?#####" #???##""" "##????????????????????? | | ##" "#?????##% #????# ##?????????????????????? | | #"" ##?????? ????#""" #??????????????????????? | | # #####?? ???##"" #??????????????????????? | | ## "#? % ????##[@#??????????????????????? | | ?# "##" % % "????#%& #?????????????????????? | | ?## ""##" " " "#???#RR##?????????????????????? | | ??## "###"""" " ""???? ""??????????????????????? | | ???#" ##?#####<#####?? ??????????????????????? | | #?##" ##?????###????? ??????????????????????? | | ###"" "##???????????? ??????????????????????? | | " "#??????????? ?????????????????????? | | ##????????? ## ?????????????????????? | | % #?????###?# ?????????????????????? | | ### #?????????# ###?????????????????????? | | ??### ####?????????###????????????????????????? | | ????######???????????????????????????????????????? | | ?????????????????????????????????????????????????? | | ?????????????????????????????????????????????????? | | ?????????????????????????????????????????????????? | | ?????????????????????????????????????????????????? | | ?????????????????????????????????????????????????? | | ?????????????????????????????????????????????????? | | ?????????????????????????????????????????????????? | | ?????????????????????????????????????????????????? | | ?????????????????????????????????????????????????? | | ?????????????????????????????????????????????????? | | ?????????????????????????????????????????????????? | | ?????????????????????????????????????????????????? | +----------------------------------------------------+ Best States ------------- Heat Dissipation 25 Energy Generation 15 Energy Capacity 250 Matter Stores 300 Matter Capacity 300 Sight Range 16 Terrain Scan Density 10 Armor Coverage 100 Resistance: TH 10 Evasion (%) 55 Recoil Reduction 1 Item Schematics ----------------- None Robot Schematics ------------------ None Fabricated ------------ Nothing Alien Tech Used ----------------- None Achievements -------------- None Challenges ------------ None Game ------ Seed FluxRefineryFlamer Manual? 0 Play Time 00:12:32 Cumulative 73.3 hours Start 2024.04.20 @ 22:24:51 End 2024.04.20 @ 22:39:04 Sessions 1 Manual Loads 0 Difficulty Rogue Special Mode None Game No. 156 Rogue 154 Adventurer 2 Explorer 0 Win Type - Total 1 Types 1/0/0/0/0/0/0/0/0 Lore% 46 Gallery% 47 Achievement% 37 Wizard Run 0 Options --------- Layout 0 ASCII 0 Keyboard 1 Movement Numpad Keybinds 1 Fullscreen 2 Font 18/SmallcapsGlow Map View 76x50 Zoom Use 0% Tactical HUD 1 Map Filters NONE Filters NONE Steam 1 RUN: 4dd3bea8-cd35-4f38-abb3-dca4ea99e1e0